[Event "*** SCC Grand Prix: Titled Tuesday Blitz"]
[Site "Chess.com"]
[Date "2020.10.06"]
[Round "9"]
[White "Sibelephant"]
[Black "Azerichess"]
[Result "1/2-1/2"]
[WhiteElo "3096"]
[BlackElo "2935"]
[TimeControl "180+1"]
[EndTime "11:47:41 PDT"]
[Termination "Game drawn - insufficient material"]

1. d4 {[%clk 0:02:59.9]} 1... Nf6 {[%clk 0:02:59.6]} 2. Bg5 {[%clk 0:03:00.1]}
2... e6 {[%clk 0:02:56]} 3. Nd2 {[%clk 0:02:59.3]} 3... c5 {[%clk 0:02:53.2]} 4.
e3 {[%clk 0:02:59.4]} 4... Nc6 {[%clk 0:02:51]} 5. c3 {[%clk 0:02:59.4]} 5... b6
{[%clk 0:02:49.9]} 6. Ngf3 {[%clk 0:02:59.2]} 6... Be7 {[%clk 0:02:49.6]} 7. Bd3
{[%clk 0:02:58.9]} 7... Bb7 {[%clk 0:02:48.6]} 8. O-O {[%clk 0:02:58.9]} 8...
O-O {[%clk 0:02:47.8]} 9. Qe2 {[%clk 0:02:56.4]} 9... h6 {[%clk 0:02:46.1]} 10.
Bh4 {[%clk 0:02:55.9]} 10... Rc8 {[%clk 0:02:43.5]} 11. a3 {[%clk 0:02:46.3]}
11... d5 {[%clk 0:02:38.5]} 12. b4 {[%clk 0:02:45.7]} 12... c4 {[%clk
0:02:27.1]} 13. Bc2 {[%clk 0:02:44.4]} 13... Ne4 {[%clk 0:02:27.5]} 14. Bxe7
{[%clk 0:02:11.1]} 14... Nxc3 {[%clk 0:02:27.4]} 15. Qxc4 {[%clk 0:01:32.9]}
15... dxc4 {[%clk 0:02:24.4]} 16. Bxd8 {[%clk 0:01:32.7]} 16... Rfxd8 {[%clk
0:02:21.6]} 17. Nxc4 {[%clk 0:01:11.3]} 17... Ba6 {[%clk 0:02:20.3]} 18. Bd3
{[%clk 0:00:53.7]} 18... Nxd4 {[%clk 0:02:20.4]} 19. Nxd4 {[%clk 0:00:54.1]}
19... Bxc4 {[%clk 0:02:21]} 20. Bxc4 {[%clk 0:00:53.7]} 20... Rxc4 {[%clk
0:02:21.9]} 21. h3 {[%clk 0:00:42.7]} 21... e5 {[%clk 0:02:20]} 22. Nf5 {[%clk
0:00:36.6]} 22... f6 {[%clk 0:02:12.1]} 23. g4 {[%clk 0:00:35.7]} 23... b5
{[%clk 0:01:48.5]} 24. Kg2 {[%clk 0:00:35.8]} 24... Rd2 {[%clk 0:01:44.2]} 25.
Rac1 {[%clk 0:00:26]} 25... Kf7 {[%clk 0:01:28.5]} 26. Ng3 {[%clk 0:00:25.5]}
26... g6 {[%clk 0:01:17.1]} 27. Ra1 {[%clk 0:00:24.6]} 27... Ke6 {[%clk
0:01:15.6]} 28. Rfc1 {[%clk 0:00:24.8]} 28... f5 {[%clk 0:01:06.9]} 29. a4
{[%clk 0:00:23.2]} 29... Nd5 {[%clk 0:00:53.5]} 30. gxf5+ {[%clk 0:00:17.7]}
30... gxf5 {[%clk 0:00:53.4]} 31. axb5 {[%clk 0:00:12.7]} 31... Nxe3+ {[%clk
0:00:53.6]} 32. Kf3 {[%clk 0:00:13.2]} 32... Rxc1 {[%clk 0:00:42.3]} 33. Rxc1
{[%clk 0:00:14.1]} 33... Nc2 {[%clk 0:00:42.4]} 34. Nf1 {[%clk 0:00:10.5]} 34...
Nd4+ {[%clk 0:00:41.5]} 35. Kg2 {[%clk 0:00:10.3]} 35... Rb2 {[%clk 0:00:38.5]}
36. Ra1 {[%clk 0:00:08.4]} 36... Nxb5 {[%clk 0:00:37.8]} 37. Ne3 {[%clk
0:00:07.5]} 37... Rd2 {[%clk 0:00:17.2]} 38. Ra5 {[%clk 0:00:06.8]} 38... f4
{[%clk 0:00:17.7]} 39. Nc4 {[%clk 0:00:03.9]} 39... Rd5 {[%clk 0:00:18.2]} 40.
Ra6+ {[%clk 0:00:03.8]} 40... Kf5 {[%clk 0:00:16.5]} 41. Rxh6 {[%clk 0:00:03.6]}
41... Rd4 {[%clk 0:00:14.3]} 42. Na5 {[%clk 0:00:03]} 42... Rxb4 {[%clk
0:00:11.9]} 43. Nc6 {[%clk 0:00:03.3]} 43... Re4 {[%clk 0:00:10.1]} 44. h4
{[%clk 0:00:03]} 44... Nd4 {[%clk 0:00:08.9]} 45. Ne7+ {[%clk 0:00:03.2]} 45...
Kg4 {[%clk 0:00:08.6]} 46. f3+ {[%clk 0:00:03.7]} 46... Nxf3 {[%clk 0:00:08.4]}
47. Rg6+ {[%clk 0:00:04.4]} 47... Kxh4 {[%clk 0:00:07.9]} 48. Kxf3 {[%clk
0:00:05.1]} 48... Re3+ {[%clk 0:00:08.3]} 49. Kf2 {[%clk 0:00:05.8]} 49... e4
{[%clk 0:00:06.4]} 50. Nf5+ {[%clk 0:00:05.4]} 50... Kh5 {[%clk 0:00:06.8]} 51.
Rg7 {[%clk 0:00:04.5]} 51... Rf3+ {[%clk 0:00:06.4]} 52. Ke2 {[%clk 0:00:04.4]}
52... Ra3 {[%clk 0:00:07]} 53. Nd6 {[%clk 0:00:04.2]} 53... Ra2+ {[%clk
0:00:07.2]} 54. Ke1 {[%clk 0:00:04.2]} 54... e3 {[%clk 0:00:07.8]} 55. Nf5
{[%clk 0:00:04.4]} 55... a5 {[%clk 0:00:06.4]} 56. Re7 {[%clk 0:00:04.5]} 56...
a4 {[%clk 0:00:06.5]} 57. Nxe3 {[%clk 0:00:04.7]} 57... fxe3 {[%clk 0:00:06.7]}
58. Rxe3 {[%clk 0:00:05.6]} 58... Kg4 {[%clk 0:00:05.4]} 59. Kd1 {[%clk
0:00:05.9]} 59... Kf4 {[%clk 0:00:05.9]} 60. Rh3 {[%clk 0:00:06]} 60... Ke4
{[%clk 0:00:06.4]} 61. Kc1 {[%clk 0:00:06.5]} 61... Kd4 {[%clk 0:00:06.9]} 62.
Kb1 {[%clk 0:00:06.9]} 62... Re2 {[%clk 0:00:07.2]} 63. Ra3 {[%clk 0:00:06.5]}
63... Re4 {[%clk 0:00:07.2]} 64. Rxa4+ {[%clk 0:00:06.5]} 64... Ke5 {[%clk
0:00:08.1]} 65. Rxe4+ {[%clk 0:00:07.3]} 65... Kxe4 {[%clk 0:00:08.5]} 1/2-1/2

[Event "*** SCC Grand Prix: Titled Tuesday Blitz"]
[Site "Chess.com"]
[Date "2020.10.06"]
[Round "9"]
[White "LiemLe"]
[Black "tigra"]
[Result "0-1"]
[WhiteElo "2975"]
[BlackElo "2848"]
[TimeControl "180+1"]
[EndTime "11:47:41 PDT"]
[Termination "tigra won by resignation"]

1. d4 {[%clk 0:03:00.9]} 1... Nf6 {[%clk 0:02:59.6]} 2. Nf3 {[%clk 0:03:01.5]}
2... g6 {[%clk 0:03:00.1]} 3. c4 {[%clk 0:03:00.7]} 3... Bg7 {[%clk 0:02:59.6]}
4. g3 {[%clk 0:03:01.3]} 4... O-O {[%clk 0:02:59.1]} 5. Bg2 {[%clk 0:03:01.9]}
5... d6 {[%clk 0:03:00]} 6. O-O {[%clk 0:03:02.2]} 6... a6 {[%clk 0:03:00.1]} 7.
Nc3 {[%clk 0:03:02.4]} 7... c6 {[%clk 0:02:57.2]} 8. e4 {[%clk 0:03:00.8]} 8...
Nfd7 {[%clk 0:02:57.2]} 9. Qe2 {[%clk 0:02:55.2]} 9... b5 {[%clk 0:02:57.1]} 10.
Rd1 {[%clk 0:02:52.9]} 10... Qc7 {[%clk 0:02:55.6]} 11. Be3 {[%clk 0:02:50.9]}
11... bxc4 {[%clk 0:02:52]} 12. Qxc4 {[%clk 0:02:49.5]} 12... Nb6 {[%clk
0:02:51.6]} 13. Qb3 {[%clk 0:02:45.4]} 13... a5 {[%clk 0:02:50.9]} 14. Rac1
{[%clk 0:02:36.1]} 14... a4 {[%clk 0:02:50.4]} 15. Qc2 {[%clk 0:02:36.7]} 15...
Na6 {[%clk 0:02:40.1]} 16. a3 {[%clk 0:02:17.8]} 16... Qb7 {[%clk 0:02:18.1]}
17. Nxa4 {[%clk 0:01:55.4]} 17... Nxa4 {[%clk 0:02:17.3]} 18. Qxa4 {[%clk
0:01:56.3]} 18... Nc5 {[%clk 0:02:18]} 19. Qc2 {[%clk 0:01:51.8]} 19... Nb3
{[%clk 0:02:17]} 20. Rb1 {[%clk 0:01:51.1]} 20... Be6 {[%clk 0:02:11.8]} 21. Ng5
{[%clk 0:01:25.8]} 21... Bg4 {[%clk 0:02:10.6]} 22. Rd3 {[%clk 0:01:21]} 22...
Rfb8 {[%clk 0:02:01.2]} 23. h3 {[%clk 0:01:16.7]} 23... Bd7 {[%clk 0:01:59.6]}
24. Kh2 {[%clk 0:01:14.1]} 24... h6 {[%clk 0:01:58.2]} 25. Nf3 {[%clk
0:01:14.4]} 25... Be6 {[%clk 0:01:51.5]} 26. Re1 {[%clk 0:01:09.2]} 26... c5
{[%clk 0:01:44.1]} 27. dxc5 {[%clk 0:00:31.5]} 27... Nxc5 {[%clk 0:01:25.1]} 28.
Bxc5 {[%clk 0:00:22.8]} 28... dxc5 {[%clk 0:01:26]} 29. Qxc5 {[%clk 0:00:23]}
29... Qxb2 {[%clk 0:01:17.1]} 30. e5 {[%clk 0:00:20.3]} 30... Rc8 {[%clk
0:01:06.3]} 31. Qe3 {[%clk 0:00:20.5]} 31... Rc2 {[%clk 0:00:57.3]} 32. Rd2
{[%clk 0:00:13.5]} 32... Rxd2 {[%clk 0:00:47.5]} 33. Qxd2 {[%clk 0:00:14.4]}
33... Qxa3 {[%clk 0:00:46.1]} 34. Nd4 {[%clk 0:00:13.4]} 34... Rd8 {[%clk
0:00:45.8]} 35. Qf4 {[%clk 0:00:13]} 35... g5 {[%clk 0:00:39.2]} 36. Qe3 {[%clk
0:00:03.8]} 36... Qxe3 {[%clk 0:00:35.9]} 37. fxe3 {[%clk 0:00:04.7]} 37... Bd7
{[%clk 0:00:17.4]} 38. e6 {[%clk 0:00:05.6]} 38... fxe6 {[%clk 0:00:16.9]} 39.
Rd1 {[%clk 0:00:04.1]} 39... Rc8 {[%clk 0:00:15.2]} 40. Rd2 {[%clk 0:00:02]}
40... Bf6 {[%clk 0:00:14.1]} 41. Bf3 {[%clk 0:00:02.6]} 41... Rc7 {[%clk
0:00:13]} 42. Bg4 {[%clk 0:00:02.7]} 42... Kf7 {[%clk 0:00:12.8]} 43. Bh5+
{[%clk 0:00:03.3]} 43... Kg7 {[%clk 0:00:08.4]} 44. Bg4 {[%clk 0:00:04.2]} 44...
Bxd4 {[%clk 0:00:08.8]} 45. Rxd4 {[%clk 0:00:03.8]} 45... Kf6 {[%clk 0:00:08.8]}
46. Kg1 {[%clk 0:00:04]} 46... Ra7 {[%clk 0:00:07.2]} 47. Rd1 {[%clk 0:00:04.4]}
47... Bc6 {[%clk 0:00:07]} 48. Rf1+ {[%clk 0:00:04.1]} 48... Ke5 {[%clk
0:00:07.4]} 49. h4 {[%clk 0:00:03]} 49... Ra2 {[%clk 0:00:05.7]} 50. Bh3 {[%clk
0:00:03]} 50... Re2 {[%clk 0:00:05.1]} 51. hxg5 {[%clk 0:00:02.8]} 51... hxg5
{[%clk 0:00:05.5]} 52. Bg4 {[%clk 0:00:02.7]} 52... Rg2+ {[%clk 0:00:05.1]} 53.
Kh1 {[%clk 0:00:03.1]} 53... Rxg3+ {[%clk 0:00:05.6]} 54. Kh2 {[%clk 0:00:03.8]}
54... Rxg4 {[%clk 0:00:05.2]} 55. Rc1 {[%clk 0:00:04.4]} 55... Bd5 {[%clk
0:00:05.2]} 56. Rc5 {[%clk 0:00:04.6]} 56... Rh4+ {[%clk 0:00:06.1]} 57. Kg3
{[%clk 0:00:04.6]} 57... Re4 {[%clk 0:00:06.5]} 58. Kf2 {[%clk 0:00:04.4]} 58...
Rc4 {[%clk 0:00:07]} 59. Rb5 {[%clk 0:00:04]} 59... Rc2+ {[%clk 0:00:07.2]} 60.
Kg3 {[%clk 0:00:04]} 60... Rg2+ {[%clk 0:00:07.5]} 61. Kh3 {[%clk 0:00:04.6]}
61... Re2 {[%clk 0:00:08.3]} 62. Kg4 {[%clk 0:00:04.6]} 62... Rxe3 {[%clk
0:00:08.5]} 63. Kxg5 {[%clk 0:00:05.5]} 63... Rg3+ {[%clk 0:00:08.9]} 64. Kh4
{[%clk 0:00:06]} 64... Rg8 {[%clk 0:00:08.6]} 65. Rb1 {[%clk 0:00:05.6]} 65...
Kf4 {[%clk 0:00:08.8]} 66. Kh5 {[%clk 0:00:04.2]} 66... Rh8+ {[%clk 0:00:08]}
67. Kg6 {[%clk 0:00:04.4]} 67... Be4+ {[%clk 0:00:08.9]} 68. Kf7 {[%clk
0:00:04.2]} 68... Bxb1 {[%clk 0:00:09.8]} 0-1

[Event "*** SCC Grand Prix: Titled Tuesday Blitz"]
[Site "Chess.com"]
[Date "2020.10.06"]
[Round "9"]
[White "yourstrulyme"]
[Black "davidkalashian"]
[Result "0-1"]
[WhiteElo "2445"]
[BlackElo "2590"]
[TimeControl "180+1"]
[EndTime "11:47:42 PDT"]
[Termination "davidkalashian won on time"]

1. d4 {[%clk 0:03:00.9]} 1... Nf6 {[%clk 0:02:58.9]} 2. Nf3 {[%clk 0:03:01.5]}
2... e6 {[%clk 0:02:58.8]} 3. Bf4 {[%clk 0:03:01.6]} 3... b6 {[%clk 0:02:57.9]}
4. Nbd2 {[%clk 0:03:01.3]} 4... Bb7 {[%clk 0:02:57.6]} 5. e3 {[%clk 0:03:01.4]}
5... c5 {[%clk 0:02:57.1]} 6. Bd3 {[%clk 0:02:59.8]} 6... cxd4 {[%clk
0:02:57.1]} 7. exd4 {[%clk 0:02:59.7]} 7... Be7 {[%clk 0:02:58]} 8. O-O {[%clk
0:02:57.3]} 8... O-O {[%clk 0:02:58.4]} 9. h3 {[%clk 0:02:56.3]} 9... d6 {[%clk
0:02:58.3]} 10. Re1 {[%clk 0:02:55.4]} 10... Nbd7 {[%clk 0:02:57.9]} 11. c3
{[%clk 0:02:54.3]} 11... a6 {[%clk 0:02:57.3]} 12. a4 {[%clk 0:02:53.6]} 12...
Re8 {[%clk 0:02:56.9]} 13. Nc4 {[%clk 0:02:51.4]} 13... Nf8 {[%clk 0:02:55.3]}
14. Nfd2 {[%clk 0:02:34.8]} 14... Ng6 {[%clk 0:02:52]} 15. Bh2 {[%clk 0:02:34]}
15... Nd5 {[%clk 0:02:51.2]} 16. Bf1 {[%clk 0:02:29.4]} 16... Bf8 {[%clk
0:02:49.4]} 17. Ne4 {[%clk 0:02:25.8]} 17... Ndf4 {[%clk 0:02:47.3]} 18. Qd2
{[%clk 0:01:44.2]} 18... d5 {[%clk 0:02:31.7]} 19. Bxf4 {[%clk 0:01:41.5]} 19...
Nxf4 {[%clk 0:02:27.8]} 20. Qxf4 {[%clk 0:01:42.4]} 20... dxe4 {[%clk
0:02:27.8]} 21. Nd2 {[%clk 0:01:36.9]} 21... Bd6 {[%clk 0:02:25.7]} 22. Qe3
{[%clk 0:01:22.1]} 22... f5 {[%clk 0:02:24]} 23. Qe2 {[%clk 0:01:15.2]} 23...
Bc7 {[%clk 0:02:16]} 24. f3 {[%clk 0:01:13.6]} 24... e5 {[%clk 0:01:50.4]} 25.
fxe4 {[%clk 0:00:43.7]} 25... exd4 {[%clk 0:01:48]} 26. Qc4+ {[%clk 0:00:42.1]}
26... Kh8 {[%clk 0:01:46.7]} 27. Qxd4 {[%clk 0:00:27.3]} 27... fxe4 {[%clk
0:01:45.9]} 28. Rad1 {[%clk 0:00:20.5]} 28... Qh4 {[%clk 0:01:42.3]} 29. Qe3
{[%clk 0:00:16.6]} 29... Bg3 {[%clk 0:01:34.8]} 30. Re2 {[%clk 0:00:14.7]} 30...
Bf4 {[%clk 0:01:32.7]} 31. Qf2 {[%clk 0:00:14.7]} 31... Qg5 {[%clk 0:01:29.4]}
32. Nc4 {[%clk 0:00:13.6]} 32... e3 {[%clk 0:01:22.5]} 33. Qe1 {[%clk
0:00:10.4]} 33... Bg3 {[%clk 0:01:22.3]} 34. Nd6 {[%clk 0:00:08.8]} 34... Bxe1
{[%clk 0:01:20.1]} 35. Nf7+ {[%clk 0:00:08.6]} 35... Kg8 {[%clk 0:01:16.5]} 36.
Nxg5 {[%clk 0:00:09.5]} 36... Bf2+ {[%clk 0:01:15.3]} 37. Rxf2 {[%clk
0:00:08.5]} 37... exf2+ {[%clk 0:01:15]} 38. Kxf2 {[%clk 0:00:09.4]} 38... h6
{[%clk 0:01:10]} 39. Bc4+ {[%clk 0:00:09.2]} 39... Kh8 {[%clk 0:01:10.1]} 40.
Nf7+ {[%clk 0:00:09]} 40... Kh7 {[%clk 0:01:10]} 41. Nd6 {[%clk 0:00:06.6]}
41... Rf8+ {[%clk 0:01:09.5]} 42. Kg3 {[%clk 0:00:05.9]} 42... Bc6 {[%clk
0:01:09.3]} 43. Bd3+ {[%clk 0:00:05.3]} 43... Kh8 {[%clk 0:01:08.3]} 44. Re1
{[%clk 0:00:05.4]} 44... Rad8 {[%clk 0:01:07]} 45. Re6 {[%clk 0:00:05.2]} 45...
Bd5 {[%clk 0:01:03.8]} 46. Rg6 {[%clk 0:00:03.5]} 46... Rf6 {[%clk 0:01:01.9]}
47. Rxf6 {[%clk 0:00:03.3]} 47... gxf6 {[%clk 0:01:02.8]} 48. Nf5 {[%clk
0:00:03.3]} 48... Be6 {[%clk 0:00:53.7]} 49. Be4 {[%clk 0:00:02.6]} 49... Bxf5
{[%clk 0:00:52.8]} 50. Bxf5 {[%clk 0:00:03.5]} 50... Kg7 {[%clk 0:00:50.3]} 51.
b4 {[%clk 0:00:03.5]} 51... Re8 {[%clk 0:00:44.6]} 52. Kf4 {[%clk 0:00:03.2]}
52... Re2 {[%clk 0:00:42.2]} 53. g4 {[%clk 0:00:02.5]} 53... Ra2 {[%clk
0:00:40.9]} 54. a5 {[%clk 0:00:01.3]} 54... bxa5 {[%clk 0:00:40.1]} 55. bxa5
{[%clk 0:00:02.2]} 55... Rxa5 {[%clk 0:00:40.4]} 56. c4 {[%clk 0:00:03.1]} 56...
Kf7 {[%clk 0:00:38.3]} 57. Ke4 {[%clk 0:00:03.1]} 57... Ke7 {[%clk 0:00:38.2]}
58. Kd4 {[%clk 0:00:04]} 58... Kd6 {[%clk 0:00:38.4]} 59. Kc3 {[%clk 0:00:02.9]}
59... Kc5 {[%clk 0:00:36.2]} 60. Bc2 {[%clk 0:00:03.4]} 60... Ra1 {[%clk
0:00:33.8]} 61. Kb2 {[%clk 0:00:03]} 61... Rh1 {[%clk 0:00:33.2]} 62. Bf5 {[%clk
0:00:02.5]} 62... Rxh3 {[%clk 0:00:31.2]} 63. Bc8 {[%clk 0:00:01.9]} 63... a5
{[%clk 0:00:30.2]} 64. Kc2 {[%clk 0:00:01.8]} 64... Kxc4 {[%clk 0:00:28.2]} 65.
g5 {[%clk 0:00:01.6]} 65... Rh2+ {[%clk 0:00:27.9]} 66. Kb1 {[%clk 0:00:02.1]}
66... hxg5 {[%clk 0:00:28.7]} 0-1

[Event "*** SCC Grand Prix: Titled Tuesday Blitz"]
[Site "Chess.com"]
[Date "2020.10.06"]
[Round "9"]
[White "DenLaz"]
[Black "vovachesss"]
[Result "1-0"]
[WhiteElo "2818"]
[BlackElo "2685"]
[TimeControl "180+1"]
[EndTime "11:47:46 PDT"]
[Termination "DenLaz won by resignation"]

1. d4 {[%clk 0:02:56.2]} 1... Nf6 {[%clk 0:02:59.7]} 2. c4 {[%clk 0:02:55.7]}
2... c6 {[%clk 0:02:59.5]} 3. Nf3 {[%clk 0:02:54.3]} 3... d5 {[%clk 0:02:59.4]}
4. Qc2 {[%clk 0:02:54.9]} 4... dxc4 {[%clk 0:02:56.5]} 5. Qxc4 {[%clk
0:02:54.9]} 5... Bf5 {[%clk 0:02:56]} 6. g3 {[%clk 0:02:54.8]} 6... e6 {[%clk
0:02:55.9]} 7. Bg2 {[%clk 0:02:55.1]} 7... Nbd7 {[%clk 0:02:56.3]} 8. O-O {[%clk
0:02:55.3]} 8... Be7 {[%clk 0:02:50.8]} 9. Qb3 {[%clk 0:02:55.3]} 9... Qb6
{[%clk 0:02:47.1]} 10. Nbd2 {[%clk 0:02:54.4]} 10... O-O {[%clk 0:02:45.2]} 11.
Nc4 {[%clk 0:02:53.4]} 11... Qa6 {[%clk 0:02:44.9]} 12. Bf4 {[%clk 0:02:52.8]}
12... Nd5 {[%clk 0:02:40.2]} 13. Bd6 {[%clk 0:02:46.6]} 13... Be4 {[%clk
0:02:08.7]} 14. Rfc1 {[%clk 0:02:27]} 14... N7b6 {[%clk 0:01:47.3]} 15. Bxe7
{[%clk 0:02:19.5]} 15... Nxe7 {[%clk 0:01:48.2]} 16. Ncd2 {[%clk 0:02:02.1]}
16... Bg6 {[%clk 0:00:59.2]} 17. e3 {[%clk 0:01:57.5]} 17... Rfd8 {[%clk
0:00:53.6]} 18. Bf1 {[%clk 0:01:52.5]} 18... Qa5 {[%clk 0:00:53.1]} 19. Rc5
{[%clk 0:01:49.5]} 19... Qa4 {[%clk 0:00:48.1]} 20. Ne5 {[%clk 0:01:41.7]} 20...
Qxb3 {[%clk 0:00:45.5]} 21. Nxb3 {[%clk 0:01:41.1]} 21... Nd7 {[%clk 0:00:44.9]}
22. Nxg6 {[%clk 0:01:23.3]} 22... hxg6 {[%clk 0:00:35.8]} 23. Rc2 {[%clk
0:01:22.1]} 23... Nf5 {[%clk 0:00:34.9]} 24. Rd1 {[%clk 0:01:15.6]} 24... Nd6
{[%clk 0:00:34.5]} 25. f4 {[%clk 0:01:11]} 25... Kf8 {[%clk 0:00:34]} 26. Kf2
{[%clk 0:01:08.1]} 26... Ke7 {[%clk 0:00:34.4]} 27. Kf3 {[%clk 0:01:07.8]} 27...
f5 {[%clk 0:00:30.3]} 28. Na5 {[%clk 0:01:04.1]} 28... Nf6 {[%clk 0:00:24.7]}
29. b4 {[%clk 0:01:00.3]} 29... Nfe4 {[%clk 0:00:20.6]} 30. a4 {[%clk
0:00:53.3]} 30... g5 {[%clk 0:00:20.6]} 31. Nb3 {[%clk 0:00:35.2]} 31... g4+
{[%clk 0:00:20.6]} 32. Kg2 {[%clk 0:00:35.1]} 32... Rh8 {[%clk 0:00:20.1]} 33.
Nc5 {[%clk 0:00:33.7]} 33... Rh6 {[%clk 0:00:18.8]} 34. Bd3 {[%clk 0:00:31.1]}
34... Rah8 {[%clk 0:00:18.2]} 35. Rh1 {[%clk 0:00:28.6]} 35... Nf6 {[%clk
0:00:13.5]} 36. b5 {[%clk 0:00:09.4]} 36... Nd5 {[%clk 0:00:14.1]} 37. Re2
{[%clk 0:00:09.5]} 37... b6 {[%clk 0:00:11.7]} 38. Na6 {[%clk 0:00:09.5]} 38...
cxb5 {[%clk 0:00:11.5]} 39. axb5 {[%clk 0:00:10.4]} 39... Rh3 {[%clk 0:00:09.3]}
40. Ree1 {[%clk 0:00:06]} 40... Nc3 {[%clk 0:00:08.6]} 41. Nb4 {[%clk
0:00:05.2]} 41... Nce4 {[%clk 0:00:07.6]} 42. Nc6+ {[%clk 0:00:05]} 42... Kf6
{[%clk 0:00:07.6]} 43. Ne5 {[%clk 0:00:05.3]} 43... Nd2 {[%clk 0:00:07.7]} 44.
Re2 {[%clk 0:00:04.4]} 44... N2e4 {[%clk 0:00:05.8]} 45. Ree1 {[%clk 0:00:04.8]}
45... Nc3 {[%clk 0:00:06.1]} 46. Rc1 {[%clk 0:00:04.1]} 46... Nd5 {[%clk
0:00:06.6]} 47. Rce1 {[%clk 0:00:04.5]} 47... Rc8 {[%clk 0:00:06.2]} 48. Nc6
{[%clk 0:00:04.9]} 48... a6 {[%clk 0:00:05.5]} 49. e4 {[%clk 0:00:03.3]} 49...
fxe4 {[%clk 0:00:04.3]} 50. Be2 {[%clk 0:00:02.4]} 50... axb5 {[%clk 0:00:03.5]}
51. Bxg4 {[%clk 0:00:02.7]} 51... Rh6 {[%clk 0:00:03]} 52. Ne5 {[%clk 0:00:03]}
52... Rc2+ {[%clk 0:00:03.4]} 53. Re2 {[%clk 0:00:01.9]} 53... Rxe2+ {[%clk
0:00:02.8]} 54. Bxe2 {[%clk 0:00:01.9]} 54... b4 {[%clk 0:00:03.1]} 55. Ng4+
{[%clk 0:00:02.4]} 55... Kf5 {[%clk 0:00:02.1]} 56. Nxh6+ {[%clk 0:00:03.3]}
56... gxh6 {[%clk 0:00:02.8]} 57. Kf2 {[%clk 0:00:03.9]} 57... e3+ {[%clk
0:00:02.6]} 58. Kf3 {[%clk 0:00:03.9]} 58... Kf6 {[%clk 0:00:02.9]} 59. Rc1
{[%clk 0:00:03.3]} 59... Nf5 {[%clk 0:00:03.3]} 60. Bd3 {[%clk 0:00:03.7]} 60...
Nxd4+ {[%clk 0:00:03.5]} 61. Ke4 {[%clk 0:00:04.2]} 61... b3 {[%clk 0:00:04.3]}
62. Kxd4 {[%clk 0:00:03.9]} 62... b2 {[%clk 0:00:04]} 63. Rb1 {[%clk 0:00:04.4]}
63... e2 {[%clk 0:00:01.9]} 64. Bxe2 {[%clk 0:00:04.3]} 1-0